[Event "CZE-ch U16 Girls 2023"]
[Site "Teplice"]
[Date "2023.03.13"]
[Round "4.1"]
[White "Havelkova, Beata"]
[Black "Zelbova, Lada"]
[Result "0-1"]
[ECO "C05"]
[WhiteElo "1670"]
[BlackElo "1822"]
[Annotator "NA RC COMBH"]
[PlyCount "48"]
[EventDate "2023.03.09"]
[EventType "swiss"]
[EventCountry "CZE"]
[SourceTitle "playchess.com"]
[Source "ChessBase"]
[SourceQuality "1"]
[TimeControl "40/5400+30:1800+30"]

1. e4 {[%emt 0:00:02]} e6 {[%emt 0:00:06]} 2. d4 {[%emt 0:00:07]} d5 {[%emt 0:00:28]} 3. Nd2 {[%emt 0:00:10]} Nf6 {[%emt 0:00:48]} 4. e5 {[%emt 0:00:45]} Nfd7 {[%emt 0:00:20]} 5. Bd3 {[%emt 0:00:25]} c5 {[%emt 0:00:15]} 6. c3 {[%emt 0:00:15]} Nc6 {[%emt 0:00:48]} 7. Ne2 {[%emt 0:00:27]} Be7 {[%emt 0:02:46]} 8. O-O {[%emt 0:00:36]} Qb6 {[%emt 0:18:56]} 9. Nf3 {[%emt 0:00:44]} O-O {[%emt 0:05:27]} 10. b3 {[%emt 0:01:44]} Re8 {[%emt 0:03:38]} 11. Bg5 {[%emt 0:05:45]} cxd4 {[%emt 0:04:30]} 12. Bxe7 {[%emt 0:01:07]} Rxe7 {[%emt 0:01:19]} 13. cxd4 {[%emt 0:00:15]} Nf8 {[%emt 0:00:42]} 14. Qd2 {[%emt 0:07:50]} Rc7 {[%emt 0:07:15]} 15. Qg5 {[%emt 0:03:12]} Nb4 {[%emt 0:02:29]} 16. Rad1 {[%emt 0:02:08]} Nxd3 {[%emt 0:01:31]} 17. Rxd3 {[%emt 0:00:09]} Bd7 {[%emt 0:02:32]} 18. Nf4 {[%emt 0:01:45]} h6 {[%emt 0:05:31]} 19. Qg4 {[%emt 0:04:03]} Bb5 {[%emt 0:02:07]} 20. Rfd1 {[%emt 0:12:10]} Bxd3 {[%emt 0:00:55]} 21. Nxd3 {[%emt 0:00:08]} Rac8 {[%emt 0:00:51]} 22. Nc5 {[%emt 0:02:32]} Qa5 {[%emt 0:02:36]} 23. Nh4 {[%emt 0:01:38]} b6 {[%emt 0:01:13]} 24. Rd3 {[%emt 0:02:53]} Qe1# 0-1

[Event "CZE-ch U16 Girls 2023"]
[Site "Teplice"]
[Date "2023.03.13"]
[Round "4.2"]
[White "Cinkova, Vicky"]
[Black "Vacekova, Anita"]
[Result "1/2-1/2"]
[ECO "C47"]
[WhiteElo "1285"]
[BlackElo "1350"]
[Annotator "NA RC COMBH"]
[PlyCount "102"]
[EventDate "2023.03.09"]
[EventType "swiss"]
[EventCountry "CZE"]
[SourceTitle "playchess.com"]
[Source "ChessBase"]
[SourceQuality "1"]
[TimeControl "40/5400+30:1800+30"]

1. e4 {[%emt 0:02:58]} e5 {[%emt 0:00:24]} 2. Nf3 {[%emt 0:00:28]} Nc6 {[%emt 0:00:09]} 3. Nc3 {[%emt 0:02:14]} Nf6 {[%emt 0:00:38]} 4. d4 {[%emt 0:00:07]} exd4 {[%emt 0:01:10]} 5. Nxd4 {[%emt 0:00:13]} Bb4 {[%emt 0:00:56]} 6. Nxc6 {[%emt 0:00:12]} bxc6 {[%emt 0:00:18]} 7. Bd3 {[%emt 0:00:20]} d5 {[%emt 0:01:28]} 8. exd5 {[%emt 0:00:50]} O-O {[%emt 0:02:40]} 9. O-O {[%emt 0:03:11]} Bg4 {[%emt 0:01:05]} 10. Be2 {[%emt 0:08:16]} Bxe2 {[%emt 0:00:42]} 11. Qxe2 {[%emt 0:01:10]} cxd5 {[%emt 0:05:22]} 12. Bg5 {[%emt 0:07:31]} c6 {[%emt 0:01:51]} 13. Qf3 {[%emt 0:04:30]} Be7 {[%emt 0:00:45]} 14. Bf4 {[%emt 0:10:54]} Ne8 {[%emt 0:11:18]} 15. Ne2 {[%emt 0:06:24]} Bf6 {[%emt 0:09:56]} 16. c3 {[%emt 0:01:15]} Nc7 {[%emt 0:14:59]} 17. Nd4 {[%emt 0:08:22]} Qd7 {[%emt 0:02:00]} 18. Qg3 {[%emt 0:13:14]} Ne6 {[%emt 0:02:16]} 19. Nxe6 {[%emt 0:00:38]} fxe6 {[%emt 0:01:01]} 20. Bg5 {[%emt 0:03:26]} Bxg5 {[%emt 0:05:50]} 21. Qxg5 {[%emt 0:00:55]} Rab8 {[%emt 0:01:17]} 22. b3 {[%emt 0:04:15]} Rf5 {[%emt 0:06:40]} 23. Qe3 {[%emt 0:01:26]} e5 {[%emt 0:04:44]} 24. h3 {[%emt 0:02:56]} Qc7 {[%emt 0:04:17]} 25. Rfe1 {[%emt 0:02:18]} Qb6 {[%emt 0:03:00]} 26. g4 {[%emt 0:06:40]} Qxe3 {[%emt 0:01:46]} 27. Rxe3 {[%emt 0:00:08]} Rg5 {[%emt 0:01:14]} 28. Rae1 {[%emt 0:00:41]} e4 {[%emt 0:00:46]} 29. f3 {[%emt 0:01:40]} exf3 {[%emt 0:01:06]} 30. Rxf3 {[%emt 0:00:07]} Rf8 {[%emt 0:03:21]} 31. Rxf8+ {[%emt 0:03:18]} Kxf8 {[%emt 0:00:14]} 32. Kf2 {[%emt 0:00:40]} Rg6 {[%emt 0:01:09]} 33. Re3 {[%emt 0:01:17]} Kf7 {[%emt 0:00:53]} 34. a4 {[%emt 0:00:46]} Re6 {[%emt 0:00:59]} 35. Rd3 {[%emt 0:00:28]} Kf6 {[%emt 0:01:07]} 36. b4 {[%emt 0:01:01]} Ke5 {[%emt 0:00:58]} 37. b5 {[%emt 0:00:35]} cxb5 {[%emt 0:00:29]} 38. axb5 {[%emt 0:00:03]} Rb6 {[%emt 0:01:28]} 39. Re3+ {[%emt 0:00:29]} Kd6 {[%emt 0:00:35]} 40. Re8 {[%emt 0:00:50]} Rxb5 {[%emt 0:00:39]} 41. Rg8 {[%emt 0:30:49]} Rb7 {[%emt 0:30:47]} 42. Ke3 {[%emt 0:01:28]} Kc5 {[%emt 0:00:00]} 43. Rc8+ {[%emt 0:00:00]} Kb6 {[%emt 0:00:00]} 44. Rd8 {[%emt 0:00:00]} a5 {[%emt 0:00:00]} 45. Rxd5 {[%emt 0:00:00]} Ra7 {[%emt 0:00:00]} 46. Kd3 {[%emt 0:00:00]} a4 {[%emt 0:00:00]} 47. Kc2 {[%emt 0:00:00]} a3 {[%emt 0:00:00]} 48. Kb1 {[%emt 0:00:00]} Rc7 {[%emt 0:00:00]} 49. Rd3 {[%emt 0:00:00]} Kc5 {[%emt 0:00:00]} 50. Ka2 {[%emt 0:00:00]} Ra7 {[%emt 0:00:00]} 51. Rd4 {[%emt 0:00:00]} Kb5 {[%emt 0:00:00]} 1/2-1/2

[Event "CZE-ch U16 Girls 2023"]
[Site "Teplice"]
[Date "2023.03.13"]
[Round "4.3"]
[White "Dudkova, Josefina"]
[Black "Archlebova, Stela"]
[Result "1/2-1/2"]
[ECO "D00"]
[WhiteElo "1519"]
[BlackElo "1360"]
[Annotator "NA RC COMBH"]
[PlyCount "107"]
[EventDate "2023.03.09"]
[EventType "swiss"]
[EventCountry "CZE"]
[SourceTitle "playchess.com"]
[Source "ChessBase"]
[SourceQuality "1"]
[TimeControl "40/5400+30:1800+30"]

1. d4 {[%emt 0:00:04]} d5 {[%emt 0:00:03]} 2. Bf4 {[%emt 0:00:07]} Bf5 {[%emt 0:00:23]} 3. e3 {[%emt 0:00:19]} Nf6 {[%emt 0:00:21]} 4. Nf3 {[%emt 0:01:09]} Nc6 {[%emt 0:00:16]} 5. Bd3 {[%emt 0:02:59]} Bg6 {[%emt 0:02:51]} 6. Nbd2 {[%emt 0:04:23]} e6 {[%emt 0:04:24]} 7. Qe2 {[%emt 0:04:32]} Nb4 {[%emt 0:04:04]} 8. Bxg6 {[%emt 0:04:17]} hxg6 {[%emt 0:00:12]} 9. Nb3 {[%emt 0:02:10]} Bd6 {[%emt 0:05:21]} 10. Bxd6 {[%emt 0:06:01]} Qxd6 {[%emt 0:00:13]} 11. Ne5 {[%emt 0:01:48]} Nc6 {[%emt 0:02:02]} 12. f4 {[%emt 0:08:18]} Ne4 {[%emt 0:01:17]} 13. a3 {[%emt 0:03:08]} Nxe5 {[%emt 0:01:03]} 14. fxe5 {[%emt 0:01:04]} Qe7 {[%emt 0:00:16]} 15. O-O-O {[%emt 0:05:16]} c6 {[%emt 0:03:53]} 16. Nd2 {[%emt 0:05:48]} Nxd2 {[%emt 0:01:40]} 17. Rxd2 {[%emt 0:00:56]} O-O-O {[%emt 0:01:09]} 18. g3 {[%emt 0:05:45]} f6 {[%emt 0:00:53]} 19. exf6 {[%emt 0:01:05]} gxf6 {[%emt 0:00:26]} 20. e4 {[%emt 0:01:07]} Kb8 {[%emt 0:02:23]} 21. Re1 {[%emt 0:04:08]} Rhe8 {[%emt 0:00:39]} 22. Qg4 {[%emt 0:01:51]} Qf7 {[%emt 0:03:46]} 23. Rf2 {[%emt 0:06:00]} f5 {[%emt 0:02:50]} 24. exf5 {[%emt 0:03:05]} exf5 {[%emt 0:00:27]} 25. Qf4+ {[%emt 0:00:08]} Ka8 {[%emt 0:00:15]} 26. Rfe2 {[%emt 0:02:39]} Rxe2 {[%emt 0:01:12]} 27. Rxe2 {[%emt 0:00:02]} Re8 {[%emt 0:00:15]} 28. Rxe8+ {[%emt 0:09:30]} Qxe8 {[%emt 0:00:08]} 29. Qe5 {[%emt 0:00:05]} Qg8 {[%emt 0:03:12]} 30. Kd2 {[%emt 0:00:53]} a6 {[%emt 0:00:35]} 31. Ke3 {[%emt 0:01:35]} Qh7 {[%emt 0:00:55]} 32. h4 {[%emt 0:02:16]} Qh6+ {[%emt 0:00:47]} 33. Qf4 {[%emt 0:00:53]} Qh7 {[%emt 0:00:56]} 34. Qg5 {[%emt 0:01:10]} Qf7 {[%emt 0:00:38]} 35. Qf4 {[%emt 0:05:04]} Qe7+ {[%emt 0:00:58]} 36. Qe5 {[%emt 0:01:01]} Qh7 {[%emt 0:00:12]} 37. c3 {[%emt 0:02:02]} Ka7 {[%emt 0:00:47]} 38. Qf6 {[%emt 0:01:35]} Qh6+ {[%emt 0:01:51]} 39. Qg5 {[%emt 0:00:38]} Qh7 {[%emt 0:00:36]} 40. Kf4 {[%emt 0:02:28]} Qc7+ {[%emt 0:00:13]} 41. Kf3 {[%emt 0:30:30]} Qf7 {[%emt 0:30:15]} 42. Qe3 {[%emt 0:00:00]} Qh7 {[%emt 0:00:00]} 43. c4 {[%emt 0:00:00]} Qd7 {[%emt 0:00:00]} 44. cxd5 {[%emt 0:00:00]} Qxd5+ {[%emt 0:00:00]} 45. Kf4 {[%emt 0:00:00]} Qd8 {[%emt 0:00:00]} 46. d5+ {[%emt 0:00:00]} Ka8 {[%emt 0:00:00]} 47. dxc6 {[%emt 0:00:00]} bxc6 {[%emt 0:00:00]} 48. b4 {[%emt 0:00:00]} Kb7 {[%emt 0:00:00]} 49. Qc3 {[%emt 0:01:19]} Qe7 {[%emt 0:00:00]} 50. Qe5 {[%emt 0:00:51]} Qh7 {[%emt 0:00:00]} 51. Qf6 {[%emt 0:01:29]} Kb6 {[%emt 0:00:00]} 52. Ke5 {[%emt 0:02:04]} Qc7+ {[%emt 0:00:00]} 53. Qd6 {[%emt 0:00:25]} Qg7+ {[%emt 0:00:00]} 54. Qf6 {[%emt 0:02:19]} 1/2-1/2

[Event "CZE-ch U16 Girls 2023"]
[Site "Teplice"]
[Date "2023.03.13"]
[Round "4.4"]
[White "Barteckova, Denisa"]
[Black "Dobsa, Emma"]
[Result "0-1"]
[ECO "C49"]
[WhiteElo "1417"]
[BlackElo "1449"]
[Annotator "NA RC COMBH"]
[PlyCount "114"]
[EventDate "2023.03.09"]
[EventType "swiss"]
[EventCountry "CZE"]
[SourceTitle "playchess.com"]
[Source "ChessBase"]
[SourceQuality "1"]
[TimeControl "40/5400+30:1800+30"]

1. e4 {[%emt 0:00:02]} e5 {[%emt 0:00:23]} 2. Nf3 {[%emt 0:00:04]} Nc6 {[%emt 0:00:06]} 3. Nc3 {[%emt 0:00:05]} Nf6 {[%emt 0:00:05]} 4. Bb5 {[%emt 0:00:09]} Bb4 {[%emt 0:00:09]} 5. O-O {[%emt 0:00:18]} O-O {[%emt 0:00:05]} 6. d3 {[%emt 0:00:05]} d6 {[%emt 0:00:04]} 7. Bg5 {[%emt 0:00:13]} Bxc3 {[%emt 0:00:19]} 8. bxc3 {[%emt 0:00:06]} Qe7 {[%emt 0:00:05]} 9. Re1 {[%emt 0:00:20]} Nd8 {[%emt 0:00:07]} 10. d4 {[%emt 0:00:37]} Ne6 {[%emt 0:02:03]} 11. Bc1 {[%emt 0:00:15]} c6 {[%emt 0:01:14]} 12. Bf1 {[%emt 0:00:45]} Qc7 {[%emt 0:00:28]} 13. h3 {[%emt 0:19:23]} Re8 {[%emt 0:04:36]} 14. Bc4 {[%emt 0:10:45]} h6 {[%emt 0:13:11]} 15. Bb2 {[%emt 0:02:04]} Nf4 {[%emt 0:01:15]} 16. Bb3 {[%emt 0:03:52]} exd4 {[%emt 0:07:23]} 17. Qxd4 {[%emt 0:01:43]} Qd7 {[%emt 0:11:12]} 18. Re3 {[%emt 0:03:33]} c5 {[%emt 0:10:40]} 19. Qd2 {[%emt 0:05:34]} Nxe4 {[%emt 0:03:09]} 20. Qe1 {[%emt 0:00:17]} Nxg2 {[%emt 0:04:13]} 21. Kxg2 {[%emt 0:02:00]} Qxh3+ {[%emt 0:00:06]} 22. Kg1 {[%emt 0:00:16]} Qg4+ {[%emt 0:00:58]} 23. Kf1 {[%emt 0:03:54]} Be6 {[%emt 0:14:13]} 24. Ke2 {[%emt 0:12:28]} Bxb3 {[%emt 0:03:03]} 25. cxb3 {[%emt 0:00:24]} Ng5 {[%emt 0:00:21]} 26. Qh1 {[%emt 0:01:29]} Rxe3+ {[%emt 0:08:44]} 27. fxe3 {[%emt 0:00:18]} Re8 {[%emt 0:00:52]} 28. Rg1 {[%emt 0:02:18]} Qe4 {[%emt 0:00:28]} 29. Bc1 {[%emt 0:00:31]} Ne6 {[%emt 0:06:50]} 30. Kd2 {[%emt 0:02:09]} Nf4 {[%emt 0:02:06]} 31. Ne1 {[%emt 0:02:07]} Qxe3+ {[%emt 0:00:24]} 32. Kc2 {[%emt 0:00:08]} Qf2+ {[%emt 0:01:00]} 33. Bd2 {[%emt 0:02:05]} Re2 {[%emt 0:03:51]} 34. Nf3 {[%emt 0:00:20]} Nd5 {[%emt 0:01:25]} 35. Kc1 {[%emt 0:02:18]} Nxc3 {[%emt 0:00:54]} 36. Qxh6 {[%emt 0:02:48]} Nxa2+ {[%emt 0:01:21]} 37. Kb1 {[%emt 0:00:25]} Qxg1+ {[%emt 0:00:23]} 38. Nxg1 {[%emt 0:00:31]} gxh6 {[%emt 0:00:01]} 39. Nxe2 {[%emt 0:00:12]} Nb4 {[%emt 0:00:14]} 40. Bxh6 {[%emt 0:01:03]} f6 {[%emt 0:01:15]} 41. Nf4 {[%emt 0:30:31]} Nc6 {[%emt 0:30:40]} 42. Kb2 {[%emt 0:00:40]} Nd4 {[%emt 0:00:24]} 43. Nd5 {[%emt 0:00:37]} Kf7 {[%emt 0:00:29]} 44. Bf4 {[%emt 0:00:37]} Nb5 {[%emt 0:00:46]} 45. Bg3 {[%emt 0:00:57]} Ke6 {[%emt 0:00:50]} 46. Nf4+ {[%emt 0:00:43]} Kf5 {[%emt 0:00:13]} 47. Kc2 {[%emt 0:00:25]} Kg4 {[%emt 0:00:40]} 48. Bh2 {[%emt 0:00:09]} Nd4+ {[%emt 0:00:05]} 49. Kc3 {[%emt 0:00:57]} Nf3 {[%emt 0:00:31]} 50. Nd5 {[%emt 0:00:09]} Nxh2 {[%emt 0:00:22]} 51. Nxf6+ {[%emt 0:00:09]} Kf5 {[%emt 0:00:44]} 52. Ne8 {[%emt 0:01:06]} Ke5 {[%emt 0:00:00]} 53. Nc7 {[%emt 0:00:00]} Nf3 {[%emt 0:00:00]} 54. b4 {[%emt 0:00:00]} Nd4 {[%emt 0:00:00]} 55. Kc4 {[%emt 0:00:00]} b6 {[%emt 0:00:00]} 56. bxc5 {[%emt 0:00:00]} dxc5 {[%emt 0:00:00]} 57. Nb5 {[%emt 0:00:00]} Nxb5 {[%emt 0:00:00]} 0-1

[Event "CZE-ch U16 Girls 2023"]
[Site "Teplice"]
[Date "2023.03.13"]
[Round "4.5"]
[White "Kavanova, Anezka"]
[Black "Hetfleischova, Elen"]
[Result "1-0"]
[ECO "B38"]
[WhiteElo "1384"]
[BlackElo "1623"]
[Annotator "NA RC COMBH"]
[PlyCount "63"]
[EventDate "2023.03.09"]
[EventType "swiss"]
[EventCountry "CZE"]
[SourceTitle "playchess.com"]
[Source "ChessBase"]
[SourceQuality "1"]
[TimeControl "40/5400+30:1800+30"]

1. e4 {[%emt 0:00:03]} c5 {[%emt 0:00:20]} 2. Nf3 {[%emt 0:00:03]} Nc6 {[%emt 0:00:06]} 3. d4 {[%emt 0:00:06]} cxd4 {[%emt 0:00:07]} 4. Nxd4 {[%emt 0:00:07]} g6 {[%emt 0:00:08]} 5. c4 {[%emt 0:00:06]} Bg7 {[%emt 0:00:12]} 6. Be3 {[%emt 0:00:07]} Nf6 {[%emt 0:00:32]} 7. Nc3 {[%emt 0:00:09]} O-O {[%emt 0:00:42]} 8. Be2 {[%emt 0:00:17]} d6 {[%emt 0:03:49]} 9. O-O {[%emt 0:00:31]} a6 {[%emt 0:00:31]} 10. Rc1 {[%emt 0:01:10]} Bd7 {[%emt 0:02:04]} 11. f3 {[%emt 0:00:45]} Qb6 {[%emt 0:14:49]} 12. Na4 {[%emt 0:01:16]} Qa7 {[%emt 0:11:07]} 13. Nf5 {[%emt 0:01:52]} Qb8 {[%emt 0:01:08]} 14. Nxg7 {[%emt 0:00:27]} Kxg7 {[%emt 0:01:46]} 15. Nb6 {[%emt 0:00:12]} Qc7 {[%emt 0:02:04]} 16. Nxa8 {[%emt 0:00:13]} Rxa8 {[%emt 0:00:02]} 17. b3 {[%emt 0:00:35]} Kg8 {[%emt 0:00:36]} 18. Qc2 {[%emt 0:01:34]} Rc8 {[%emt 0:00:49]} 19. Rfd1 {[%emt 0:01:19]} Ne8 {[%emt 0:05:12]} 20. Qd2 {[%emt 0:01:21]} Rd8 {[%emt 0:01:21]} 21. b4 {[%emt 0:02:15]} Bc8 {[%emt 0:02:19]} 22. b5 {[%emt 0:00:40]} Ne5 {[%emt 0:00:53]} 23. bxa6 {[%emt 0:03:17]} b6 {[%emt 0:01:17]} 24. Qb4 {[%emt 0:01:28]} Rd7 {[%emt 0:01:16]} 25. Bxb6 {[%emt 0:02:03]} Qb8 {[%emt 0:00:08]} 26. Qa5 {[%emt 0:01:57]} Nc6 {[%emt 0:00:24]} 27. Qb5 {[%emt 0:00:40]} Qa8 {[%emt 0:01:07]} 28. c5 {[%emt 0:02:10]} Nc7 {[%emt 0:00:27]} 29. Bxc7 {[%emt 0:01:04]} Rxc7 30. cxd6 {[%emt 0:00:32]} exd6 {[%emt 0:00:18]} 31. Rxd6 {[%emt 0:03:22]} Bxa6 {[%emt 0:02:58]} 32. Qxa6 {[%emt 0:01:02]} 1-0

[Event "CZE-ch U16 Girls 2023"]
[Site "Teplice"]
[Date "2023.03.13"]
[Round "4.6"]
[White "Sikorova, Jana"]
[Black "Stavova, Marketa"]
[Result "0-1"]
[ECO "D32"]
[WhiteElo "1735"]
[BlackElo "1284"]
[Annotator "NA RC COMBH"]
[PlyCount "66"]
[EventDate "2023.03.09"]
[EventType "swiss"]
[EventCountry "CZE"]
[SourceTitle "playchess.com"]
[Source "ChessBase"]
[SourceQuality "1"]
[TimeControl "40/5400+30:1800+30"]

1. d4 {[%emt 0:00:02]} d5 {[%emt 0:00:11]} 2. c4 {[%emt 0:00:10]} e6 {[%emt 0:00:25]} 3. Nf3 {[%emt 0:00:17]} c5 {[%emt 0:00:30]} 4. cxd5 {[%emt 0:01:04]} exd5 {[%emt 0:00:11]} 5. Nc3 {[%emt 0:02:00]} Nf6 {[%emt 0:01:44]} 6. Bg5 {[%emt 0:01:10]} Be6 {[%emt 0:02:09]} 7. g3 {[%emt 0:02:15]} Nbd7 {[%emt 0:02:29]} 8. Bg2 {[%emt 0:03:46]} c4 {[%emt 0:04:37]} 9. Ne5 {[%emt 0:11:46]} Be7 {[%emt 0:06:06]} 10. O-O {[%emt 0:07:10]} O-O {[%emt 0:01:07]} 11. Re1 {[%emt 0:06:09]} h6 {[%emt 0:02:52]} 12. Bf4 {[%emt 0:01:35]} Nb6 {[%emt 0:01:43]} 13. Rc1 {[%emt 0:03:15]} Rc8 {[%emt 0:02:31]} 14. Na4 {[%emt 0:02:13]} Bb4 {[%emt 0:02:54]} 15. Nxb6 {[%emt 0:03:47]} Qxb6 {[%emt 0:00:33]} 16. Bd2 {[%emt 0:00:56]} Bd6 {[%emt 0:02:37]} 17. Bc3 {[%emt 0:00:46]} Qa6 {[%emt 0:01:44]} 18. a3 {[%emt 0:01:40]} b5 {[%emt 0:02:21]} 19. Qd2 {[%emt 0:02:44]} Qb6 {[%emt 0:03:08]} 20. e3 {[%emt 0:01:50]} a6 {[%emt 0:01:50]} 21. Re2 {[%emt 0:08:01]} Rfe8 {[%emt 0:03:49]} 22. Ba5 {[%emt 0:01:43]} Qb8 {[%emt 0:01:26]} 23. Qc3 {[%emt 0:02:42]} Qb7 {[%emt 0:04:31]} 24. Bb4 {[%emt 0:00:53]} Bc7 {[%emt 0:01:24]} 25. Ra1 {[%emt 0:02:43]} Ra8 {[%emt 0:02:57]} 26. Ree1 {[%emt 0:02:14]} a5 {[%emt 0:03:11]} 27. Bc5 {[%emt 0:00:56]} a4 {[%emt 0:02:21]} 28. Qb4 {[%emt 0:01:09]} Nd7 {[%emt 0:03:29]} 29. Nxd7 {[%emt 0:02:02]} Bxd7 {[%emt 0:00:08]} 30. Rad1 {[%emt 0:01:24]} Ba5 {[%emt 0:00:53]} 31. Qxa5 {[%emt 0:07:12]} Rxa5 {[%emt 0:00:08]} 32. Rd2 {[%emt 0:00:16]} Ra6 {[%emt 0:01:28]} 33. Rc1 {[%emt 0:01:36]} Rg6 {[%emt 0:01:24]} 0-1

[Event "CZE-ch U16 Girls 2023"]
[Site "Teplice"]
[Date "2023.03.13"]
[Round "4.7"]
[White "Janouskova, Adela"]
[Black "Seda, Michaela"]
[Result "1/2-1/2"]
[ECO "C11"]
[WhiteElo "1558"]
[BlackElo "1610"]
[Annotator "NA RC COMBH"]
[PlyCount "88"]
[EventDate "2023.03.09"]
[EventType "swiss"]
[EventCountry "CZE"]
[SourceTitle "playchess.com"]
[Source "ChessBase"]
[SourceQuality "1"]
[TimeControl "40/5400+30:1800+30"]

1. e4 {[%emt 0:00:15]} e6 {[%emt 0:00:13]} 2. Nf3 {[%emt 0:00:53]} d5 {[%emt 0:00:37]} 3. Nc3 {[%emt 0:01:09]} Nf6 {[%emt 0:00:26]} 4. e5 {[%emt 0:00:22]} Nfd7 {[%emt 0:00:08]} 5. d4 {[%emt 0:00:08]} c5 {[%emt 0:00:17]} 6. dxc5 {[%emt 0:00:42]} Nxc5 {[%emt 0:01:08]} 7. Be2 {[%emt 0:05:01]} Be7 {[%emt 0:01:57]} 8. O-O {[%emt 0:01:41]} O-O {[%emt 0:00:32]} 9. Qd4 {[%emt 0:07:52]} Nc6 {[%emt 0:04:03]} 10. Qg4 {[%emt 0:01:27]} Kh8 {[%emt 0:01:37]} 11. Qh5 {[%emt 0:06:53]} f6 {[%emt 0:04:53]} 12. exf6 {[%emt 0:02:24]} Bxf6 {[%emt 0:00:59]} 13. Bg5 {[%emt 0:02:47]} Qe8 {[%emt 0:14:31]} 14. Qh4 {[%emt 0:05:32]} Qg6 {[%emt 0:16:00]} 15. Rac1 {[%emt 0:09:00]} Bxg5 {[%emt 0:09:11]} 16. Nxg5 {[%emt 0:00:52]} h6 {[%emt 0:00:55]} 17. Nh3 {[%emt 0:06:16]} Qf6 {[%emt 0:03:25]} 18. Qg3 {[%emt 0:04:11]} Nd4 {[%emt 0:03:33]} 19. Bg4 {[%emt 0:10:09]} Nf5 {[%emt 0:03:47]} 20. Bxf5 {[%emt 0:01:33]} Qxf5 {[%emt 0:00:12]} 21. Qe3 {[%emt 0:01:17]} Nd7 {[%emt 0:05:54]} 22. Rfe1 {[%emt 0:02:58]} Nf6 {[%emt 0:01:44]} 23. f3 {[%emt 0:01:17]} Nh5 {[%emt 0:05:20]} 24. Qe5 {[%emt 0:09:22]} Nf4 {[%emt 0:03:03]} 25. Nxf4 {[%emt 0:01:14]} Qxf4 {[%emt 0:00:19]} 26. Qxf4 {[%emt 0:00:21]} Rxf4 {[%emt 0:00:06]} 27. Re5 {[%emt 0:02:46]} Bd7 {[%emt 0:01:38]} 28. Rce1 {[%emt 0:03:55]} Rc8 {[%emt 0:00:30]} 29. R1e2 {[%emt 0:02:14]} Rfc4 {[%emt 0:02:06]} 30. Rd2 {[%emt 0:01:31]} d4 {[%emt 0:03:03]} 31. Ne4 {[%emt 0:01:18]} Rxc2 {[%emt 0:00:37]} 32. Rxd4 {[%emt 0:00:17]} Rxb2 {[%emt 0:00:56]} 33. h3 {[%emt 0:02:00]} Bb5 {[%emt 0:01:36]} 34. Rxe6 {[%emt 0:02:33]} Rxa2 {[%emt 0:03:47]} 35. Nd6 {[%emt 0:02:23]} Rc1+ {[%emt 0:00:46]} 36. Kh2 {[%emt 0:00:04]} Bf1 {[%emt 0:01:02]} 37. Rg6 {[%emt 0:01:09]} Rcc2 {[%emt 0:01:30]} 38. Rdg4 {[%emt 0:00:21]} Rc7 {[%emt 0:01:10]} 39. Ne8 {[%emt 0:00:42]} Re7 {[%emt 0:01:27]} 40. Nxg7 {[%emt 0:00:32]} Ra6 {[%emt 0:03:54]} 41. Nf5 {[%emt 0:32:34]} Rxg6 {[%emt 0:30:37]} 42. Rxg6 {[%emt 0:00:06]} Rh7 {[%emt 0:00:00]} 43. Rd6 {[%emt 0:00:00]} Rc7 {[%emt 0:00:00]} 44. Rxh6+ {[%emt 0:00:00]} Kg8 {[%emt 0:00:00]} 1/2-1/2

[Event "CZE-ch U16 Girls 2023"]
[Site "Teplice"]
[Date "2023.03.13"]
[Round "4.8"]
[White "Andilova, Klara"]
[Black "Dominikova, Denisa"]
[Result "0-1"]
[ECO "C97"]
[WhiteElo "1104"]
[BlackElo "1301"]
[Annotator "NA COMBH"]
[PlyCount "100"]
[EventDate "2023.03.09"]
[EventType "swiss"]
[EventCountry "CZE"]
[SourceTitle "playchess.com"]
[Source "ChessBase"]
[SourceQuality "1"]
[TimeControl "40/5400+30:1800+30"]

1. e4 {[%emt 0:00:01]} e5 {[%emt 0:00:10]} 2. Nf3 {[%emt 0:00:07]} Nc6 {[%emt 0:00:11]} 3. Bb5 {[%emt 0:00:14]} a6 {[%emt 0:00:23]} 4. Ba4 {[%emt 0:00:27]} Nf6 {[%emt 0:00:49]} 5. O-O {[%emt 0:00:09]} Be7 {[%emt 0:00:44]} 6. Re1 {[%emt 0:02:20]} b5 {[%emt 0:00:33]} 7. Bb3 {[%emt 0:00:29]} d6 {[%emt 0:00:58]} 8. c3 {[%emt 0:00:49]} O-O {[%emt 0:00:46]} 9. h3 {[%emt 0:00:15]} Na5 {[%emt 0:00:44]} 10. Bc2 {[%emt 0:00:27]} c5 {[%emt 0:00:54]} 11. d4 {[%emt 0:01:54]} Qc7 {[%emt 0:03:06]} 12. d5 {[%emt 0:08:40]} Bd7 {[%emt 0:05:47]} 13. Bg5 {[%emt 0:01:54]} h6 {[%emt 0:03:56]} 14. Be3 {[%emt 0:00:38]} Nc4 {[%emt 0:02:19]} 15. b3 {[%emt 0:02:21]} Nxe3 {[%emt 0:03:30]} 16. Rxe3 {[%emt 0:00:27]} a5 {[%emt 0:06:26]} 17. Nbd2 {[%emt 0:03:47]} Rfc8 {[%emt 0:05:39]} 18. a3 {[%emt 0:06:26]} c4 {[%emt 0:12:37]} 19. b4 {[%emt 0:00:50]} axb4 {[%emt 0:01:24]} 20. cxb4 {[%emt 0:07:07]} Ra6 {[%emt 0:04:30]} 21. Rc3 {[%emt 0:01:10]} Qa7 {[%emt 0:02:47]} 22. Nf1 {[%emt 0:06:05]} Ra8 {[%emt 0:03:01]} 23. Ng3 {[%emt 0:03:46]} Nh7 {[%emt 0:06:57]} 24. Ne2 {[%emt 0:05:15]} Ng5 {[%emt 0:02:23]} 25. Qd2 {[%emt 0:04:04]} Bd8 {[%emt 0:05:39]} 26. Nxg5 {[%emt 0:17:40]} Bxg5 {[%emt 0:00:46]} 27. Qe1 {[%emt 0:01:09]} Bd8 {[%emt 0:06:30]} 28. Ra2 {[%emt 0:02:17]} Bb6 {[%emt 0:01:04]} 29. Rg3 {[%emt 0:09:44]} Bd4 {[%emt 0:02:16]} 30. Nxd4 {[%emt 0:01:08]} Qxd4 {[%emt 0:01:36]} 31. Qe3 {[%emt 0:01:08]} Qxe3 {[%emt 0:00:52]} 32. Rxe3 {[%emt 0:00:35]} Rc8 {[%emt 0:01:02]} 33. Rc3 {[%emt 0:00:40]} Ra7 {[%emt 0:01:39]} 34. Kf1 {[%emt 0:01:35]} f6 {[%emt 0:03:26]} 35. Bd1 {[%emt 0:00:21]} f5 {[%emt 0:01:24]} 36. Bc2 {[%emt 0:01:00]} f4 {[%emt 0:00:52]} 37. Bd1 {[%emt 0:00:21]} Kf7 {[%emt 0:01:07]} 38. Kg1 {[%emt 0:02:39]} g6 {[%emt 0:00:47]} 39. Kh2 {[%emt 0:00:20]} Kf6 {[%emt 0:03:23]} 40. g3 {[%emt 0:02:30]} h5 {[%emt 0:01:24]} 41. g4 {[%emt 0:35:32]} hxg4 {[%emt 0:31:11]} 42. hxg4 {[%emt 0:00:14]} Kg5 {[%emt 0:01:37]} 43. f3 {[%emt 0:00:36]} Rh8+ {[%emt 0:01:30]} 44. Kg2 {[%emt 0:00:15]} Be8 {[%emt 0:02:02]} 45. Ra1 {[%emt 0:01:41]} Rah7 {[%emt 0:00:21]} 46. Kf2 {[%emt 0:01:03]} Rh2+ {[%emt 0:00:32]} 47. Ke1 {[%emt 0:00:21]} Rh1+ {[%emt 0:00:30]} 48. Kd2 {[%emt 0:00:17]} R8h2+ {[%emt 0:00:25]} 49. Kc1 {[%emt 0:00:45]} Rxd1+ {[%emt 0:00:42]} 50. Kxd1 {[%emt 0:00:14]} Rh1+ {[%emt 0:00:05]} 0-1